bitfinex/quotes_SOLUSD_20250928
["timestamp","ask_amount","ask_price","bid_price","bid_amount"]
[1759098235137,26.69,209.96,209.82,13.59559401]
[1759098235328,26.69,209.95,209.83,39.34]
[1759098235530,26.69,209.95,209.83,43.05559066]
[1759098235939,0.69,209.95,209.83,43.05559066]
[1759098236438,26.0,209.94,209.83,43.05559066]
[1759098236634,26.0,209.94,209.81,26.0]
[1759098236945,0.69,209.93,209.82,39.32]
[1759098237142,0.69,209.92,209.82,39.32]
[1759098238439,26.69,209.92,209.81,26.0]
[1759098238761,26.69,209.92,209.81,65.32]
[1759098239438,0.69,209.92,209.81,65.32]
[1759098240338,0.69,209.92,209.81,26.0]
[1759098240532,0.69,209.92,209.82,39.32]
[1759098240729,26.0,209.95,209.82,39.32]
[1759098240932,26.0,209.95,209.83,3.71559066]
[1759098241335,0.69,209.96,209.84,13.59559401]
[1759098241520,0.2,209.97,209.86,3.71559066]
[1759098241844,0.69,209.96,209.85,39.3]
[1759098242417,26.69,209.96,209.85,39.3]
[1759098243027,26.69,209.96,209.84,13.59559401]
[1759098243237,26.69,209.96,209.85,39.3]
[1759098243630,0.2,209.97,209.86,17.31118467]
[1759098244943,0.2,209.97,209.88,13.59559401]
[1759098244944,0.89,209.97,209.88,13.59559401]
[1759098245823,0.2,209.97,209.88,13.59559401]
[1759098246024,0.2,209.97,209.9,3.71559066]
[1759098247835,0.2,209.97,209.92,3.71559066]
[1759098248247,0.2,209.97,209.93,13.59559401]
[1759098248559,0.2,209.97,209.94,42.99559066]
[1759098248928,0.2,209.97,209.96,17.31118467]
[1759098249144,0.2,209.97,209.96,56.59118467]
[1759098249326,0.2,209.97,209.96,13.59559401]
[1759098249528,0.2,209.97,209.96,56.59118467]
[1759098250035,0.2,209.97,209.96,26.0]
[1759098250538,0.2,209.97,209.96,65.28]
[1759098251625,0.1,210.07,209.97,13.59559401]
[1759098251835,0.1,210.07,210.05,17.31118467]
[1759098252034,0.1,210.07,210.03,3.71559066]
[1759098252228,0.1,210.07,210.04,39.26]
[1759098252548,0.1,210.07,210.05,39.26]
[1759098253430,0.82,210.07,210.04,39.26]
[1759098255155,0.72,210.06,209.96,3.71559066]
[1759098255356,0.72,210.06,209.97,39.26]
[1759098255560,0.72,210.05,209.9,13.59559401]
[1759098255742,0.72,210.05,209.93,13.59559401]
[1759098256054,0.72,210.05,209.94,38.44]
[1759098256354,26.72,210.05,209.94,38.44]
[1759098256849,0.72,210.05,209.94,38.44]
[1759098257354,0.72,210.05,209.93,39.59559401]
[1759098257545,0.72,210.05,209.92,3.71559066]
[1759098257546,0.72,210.04,209.92,3.71559066]
[1759098257750,26.72,210.03,209.93,39.24]
[1759098258063,0.72,210.02,209.93,39.24]
[1759098260075,3.71559066,209.99,209.86,13.59559401]
[1759098260248,26.72,209.98,209.87,36.2]
[1759098260640,26.72,209.98,209.87,39.91559066]
[1759098261666,0.72,209.98,209.9,26.0]
[1759098262342,26.68,210.01,209.9,26.0]
[1759098262534,26.68,210.01,209.91,3.71559066]
[1759098262751,0.68,210.04,209.93,3.71559066]
[1759098262953,26.0,210.02,209.93,42.95559066]
[1759098263152,0.68,210.01,209.9,3.71559066]
[1759098263364,3.71559066,209.99,209.86,3.71559066]
[1759098263571,0.68,209.98,209.87,39.24]
[1759098263785,0.68,209.98,209.86,3.71559066]
[1759098264078,0.68,209.97,209.87,39.24]
[1759098264254,0.68,209.96,209.87,39.24]
[1759098264754,26.68,209.95,209.86,3.71559066]
[1759098264951,26.0,209.94,209.87,39.24]
[1759098265171,26.68,209.94,209.87,39.24]
[1759098266161,0.68,209.94,209.87,39.24]
[1759098266565,0.68,209.94,209.86,39.24]
[1759098266879,0.68,209.94,209.86,42.95559066]
[1759098269370,26.68,209.94,209.86,42.95559066]
[1759098269957,0.68,209.94,209.86,42.95559066]
[1759098270691,26.68,209.94,209.86,42.95559066]
[1759098270871,26.68,209.93,209.86,39.24]
[1759098271187,0.68,209.92,209.84,39.24]
[1759098272189,0.68,209.92,209.74,37.22]
[1759098272190,0.68,209.91,209.81,39.24]
[1759098272373,13.59559401,209.93,209.79,3.71559066]
[1759098272374,0.68,209.9,209.8,39.24]
[1759098272560,0.68,209.9,209.79,3.71559066]
[1759098272561,26.68,209.9,209.79,3.71559066]
[1759098272755,26.0,209.86,209.77,3.71559066]
[1759098272982,26.68,209.86,209.77,3.71559066]
[1759098273369,0.68,209.85,209.77,3.71559066]
[1759098273682,26.68,209.85,209.77,3.71559066]
[1759098274976,0.68,209.84,209.75,42.95559066]
[1759098275280,0.68,209.83,209.75,42.95559066]
[1759098275586,0.68,209.83,209.75,3.71559066]
[1759098275778,26.0,209.86,209.76,39.24]
[1759098276085,0.68,209.82,209.73,3.71559066]
[1759098276273,0.68,209.82,209.74,39.22]
[1759098277972,0.68,209.82,209.75,4.76758045]
[1759098278373,0.68,209.81,209.74,43.98779563]
[1759098278575,0.68,209.81,209.71,11.92122454]
[1759098278782,0.68,209.81,209.72,44.65330881]
[1759098279890,26.68,209.81,209.72,49.42157125]
[1759098281189,0.68,209.8,209.72,44.00826244]
[1759098281397,0.68,209.79,209.72,4.76826244]
[1759098281567,0.68,209.78,209.71,5.41330881]
[1759098281893,26.68,209.77,209.69,44.63330881]
[1759098282190,26.68,209.77,209.69,43.98892363]
[1759098282984,0.68,209.77,209.69,43.98892363]
[1759098283878,0.68,209.77,209.69,4.76892363]
[1759098284285,0.68,209.81,209.7,5.41330881]
[1759098284588,26.68,209.81,209.72,5.41330881]
[1759098285172,26.0,209.81,209.72,5.41330881]
[1759098285374,0.68,209.8,209.7,5.41330881]
[1759098285577,0.68,209.79,209.71,4.76848981]
[1759098285777,26.0,209.77,209.7,5.41330881]
[1759098286179,26.68,209.77,209.7,5.41330881]
[1759098286380,26.68,209.77,209.7,10.18192536]
[1759098286579,26.0,209.77,209.7,10.18192536]
[1759098286774,0.68,209.8,209.72,5.41330881]
[1759098286979,26.68,209.8,209.72,5.41330881]
[1759098287576,0.68,209.83,209.74,5.41330881]
[1759098288109,26.68,209.82,209.74,5.41330881]
[1759098288288,0.68,209.81,209.74,5.41330881]
[1759098289480,0.68,209.81,209.75,4.76758045]
[1759098289694,26.0,209.82,209.76,5.41330881]
[1759098289900,26.0,209.82,209.78,5.41330881]
[1759098290098,26.68,209.82,209.78,5.41330881]
[1759098290602,0.69,209.81,209.76,5.41330881]
[1759098290979,0.69,209.8,209.76,5.41330881]
[1759098291312,26.0,209.82,209.74,10.18109478]
[1759098291313,26.69,209.82,209.74,10.18109478]
[1759098291890,0.69,209.81,209.74,10.18109478]
[1759098292389,0.69,209.81,209.74,4.76778597]
[1759098292701,0.69,209.81,209.75,5.41330881]
[1759098293106,26.0,209.82,209.73,10.18134295]
[1759098293409,0.69,209.8,209.73,10.18130006]
[1759098293915,26.0,209.81,209.73,10.18130006]
[1759098294205,0.69,209.79,209.7,4.76852569]
[1759098294405,26.0,209.77,209.69,10.18223507]
[1759098294582,0.69,209.76,209.69,10.18223507]
[1759098294987,0.69,209.75,209.69,10.18223507]
[1759098295207,0.69,209.75,209.68,4.76915694]
[1759098296912,0.69,209.74,209.67,5.41330881]
[1759098297597,0.69,209.74,209.65,16.6943873]
[1759098297902,0.69,209.74,209.66,5.41330881]
[1759098298202,0.69,209.74,209.67,4.76939953]
[1759098299896,0.69,209.74,209.68,5.41330881]
[1759098300098,0.69,209.74,209.69,4.76894463]
[1759098300292,39.22,209.81,209.69,4.76894463]
[1759098300293,132.8,209.92,209.73,5.41330881]
[1759098300500,5.41330881,209.88,209.75,5.41330881]
[1759098300698,26.0,209.83,209.76,5.41330881]
[1759098300902,0.69,209.82,209.76,5.41330881]
[1759098301999,0.69,209.82,209.76,10.18066097]
[1759098302203,26.69,209.84,209.76,10.18066097]
[1759098302595,0.69,209.86,209.78,5.41330881]
[1759098302992,0.69,209.85,209.78,5.41330881]
[1759098303311,0.69,209.84,209.75,10.18085777]
[1759098303611,26.69,209.85,209.77,5.41330881]
[1759098304499,26.69,209.85,209.77,10.18034489]
[1759098305015,26.69,209.84,209.77,5.41330881]
[1759098305218,26.69,209.84,209.74,5.41330881]
[1759098305219,26.0,209.8,209.74,5.41330881]
[1759098305398,26.69,209.8,209.74,5.41330881]
[1759098306016,13.59559401,209.83,209.7,39.18]
[1759098306017,0.69,209.83,209.76,5.41330881]
[1759098306222,26.69,209.83,209.76,5.41330881]
[1759098307601,0.69,209.82,209.74,5.41330881]
[1759098307918,26.69,209.81,209.75,4.76758045]
[1759098308099,0.69,209.8,209.74,5.41330881]
[1759098309118,0.69,209.79,209.7,5.41330881]
[1759098309320,26.0,209.77,209.7,5.41330881]
[1759098309516,26.69,209.77,209.7,5.41330881]
[1759098310020,26.69,209.77,209.7,10.18201976]
[1759098311923,26.66,209.76,209.7,5.41330881]
[1759098312101,26.66,209.76,209.68,5.41330881]
[1759098312102,26.66,209.75,209.68,5.41330881]
[1759098312301,26.66,209.75,209.68,10.18239186]
[1759098312501,0.66,209.74,209.68,10.18239186]
[1759098312911,0.66,209.73,209.68,10.18239186]
[1759098313101,0.66,209.72,209.68,5.41330881]
[1759098313619,0.66,209.71,209.66,5.41330881]
[1759098313805,69.92739009,209.76,209.64,10.18320791]
[1759098314009,26.0,209.69,209.51,20.0]
[1759098314201,65.16,209.69,209.62,5.41330881]
[1759098314400,26.0,209.7,209.58,26.0]
[1759098314725,26.0,209.7,209.63,5.41330881]
[1759098315118,0.66,209.69,209.62,5.41330881]
[1759098315301,0.66,209.68,209.62,5.41330881]
[1759098315496,0.66,209.67,209.6,5.41330881]
[1759098316220,0.66,209.67,209.61,4.77076475]
[1759098317524,0.66,209.67,209.6,5.41330881]
[1759098317703,0.66,209.67,209.6,22.11169732]
[1759098319610,0.66,209.67,209.56,16.70166061]
[1759098319813,0.66,209.67,209.61,5.41330881]
[1759098320818,0.66,209.67,209.62,4.77053716]
[1759098321012,0.66,209.67,209.57,11.92890657]
[1759098321211,0.66,209.66,209.6,5.41330881]
[1759098321818,0.66,209.65,209.55,30.77205857]
[1759098322016,0.66,209.64,209.57,5.41330881]
[1759098322532,0.66,209.63,209.56,5.41330881]
[1759098322726,0.66,209.62,209.56,5.41330881]
[1759098322930,0.66,209.62,209.56,10.18518624]
[1759098325026,13.59559401,209.67,209.56,10.18518624]
[1759098325231,26.66,209.64,209.56,10.18518624]
[1759098325604,0.66,209.68,209.58,5.41330881]
[1759098325805,0.66,209.7,209.61,5.41330881]
[1759098326210,26.66,209.7,209.61,5.41330881]
[1759098326412,26.0,209.7,209.61,5.41330881]
[1759098326613,0.66,209.69,209.61,5.41330881]
[1759098327541,0.66,209.69,209.62,4.77053716]
[1759098327918,0.66,209.69,209.62,16.69688006]
[1759098328520,0.66,209.73,209.63,5.41330881]
[1759098328729,26.0,209.71,209.55,26.0]
[1759098328938,26.0,209.71,209.53,5.57874255]
[1759098328939,0.66,209.7,209.6,5.41330881]
[1759098329134,0.66,209.69,209.59,5.41330881]
[1759098329431,0.66,209.68,209.59,5.41330881]
[1759098329615,0.66,209.68,209.6,4.77099236]
[1759098329814,26.66,209.67,209.57,11.9287958]
[1759098330022,26.0,209.65,209.56,5.41330881]
[1759098330221,0.66,209.64,209.54,16.70277712]
[1759098330532,0.66,209.64,209.55,5.41330881]
[1759098331417,0.66,209.63,209.55,5.41330881]
[1759098331815,0.66,209.63,209.56,4.77190303]
[1759098332032,26.0,209.65,209.56,4.77190303]
[1759098332033,39.12,209.7,209.57,5.41330881]
[1759098332231,26.0,209.67,209.59,5.41330881]
[1759098332412,26.0,209.67,209.61,5.41330881]
[1759098332739,0.66,209.66,209.57,5.41330881]
[1759098333235,0.66,209.66,209.59,5.41330881]
[1759098333834,0.66,209.66,209.6,4.77099236]
[1759098334035,0.66,209.65,209.57,5.41330881]
[1759098334544,26.0,209.67,209.57,5.41330881]
[1759098334545,0.66,209.64,209.57,5.41330881]
[1759098335143,0.66,209.64,209.58,4.77144765]
[1759098336941,0.66,209.64,209.56,8.48779529]
[1759098337725,0.66,209.64,209.56,20.41755287]
[1759098338136,0.66,209.63,209.56,20.41755287]
[1759098339420,26.0,209.67,209.56,20.41755287]
[1759098339626,0.66,209.65,209.56,20.41755287]
[1759098340543,14.25559401,209.67,209.56,20.41755287]
[1759098340722,26.0,209.68,209.58,3.7159202]
[1759098340930,26.0,209.68,209.6,3.7159202]
[1759098341444,26.0,209.68,209.61,4.77076475]
[1759098342048,26.66,209.68,209.61,4.77076475]
[1759098342345,26.66,209.68,209.6,3.7159202]
[1759098342346,0.66,209.67,209.6,3.7159202]
[1759098342541,0.66,209.66,209.57,3.7159202]
[1759098342744,26.66,209.68,209.57,3.7159202]
[1759098342918,26.66,209.68,209.59,3.7159202]
[1759098343318,0.66,209.67,209.59,3.7159202]
[1759098343546,0.66,209.71,209.64,3.7159202]
[1759098343928,0.66,209.71,209.66,3.7159202]
[1759098344341,26.0,209.73,209.66,3.7159202]
[1759098344539,26.66,209.73,209.66,3.7159202]
[1759098345121,26.0,209.73,209.66,3.7159202]
[1759098345327,0.66,209.72,209.64,3.7159202]
[1759098345646,26.0,209.73,209.64,3.7159202]
[1759098345647,0.66,209.71,209.64,8.48584608]
[1759098345952,0.66,209.7,209.64,3.7159202]
[1759098346139,0.66,209.7,209.64,8.48590786]
[1759098346951,0.66,209.72,209.64,8.48590786]
[1759098348252,0.66,209.72,209.65,1.52763506]
[1759098349861,0.66,209.72,209.66,4.76962701]
[1759098350026,0.66,209.75,209.69,1.52763506]
[1759098350230,0.66,209.74,209.69,1.52763506]
[1759098350529,0.66,209.76,209.69,1.52763506]
[1759098350730,0.71,209.75,209.66,4.76962701]
[1759098350943,0.71,209.75,209.68,1.52763506]
[1759098351396,0.71,209.77,209.68,1.52763506]
[1759098351665,0.71,209.76,209.68,6.29667142]
[1759098352041,0.71,209.76,209.68,4.76903636]
[1759098352246,0.71,209.76,209.68,6.29667142]
[1759098352762,0.71,209.76,209.7,1.52763506]
[1759098353660,26.71,209.79,209.7,1.52763506]
[1759098353959,0.71,209.78,209.71,4.76848981]
[1759098355845,0.71,209.78,209.72,1.52763506]
[1759098356032,0.71,209.81,209.72,1.52763506]
[1759098356438,26.71,209.81,209.72,1.52763506]
[1759098356942,0.71,209.8,209.72,1.52763506]
[1759098358155,0.71,209.8,209.73,4.76803509]
[1759098358533,26.0,209.81,209.74,1.52763506]
[1759098358733,26.0,209.83,209.74,1.52763506]
[1759098359044,0.71,209.82,209.76,1.52763506]
[1759098360039,0.71,209.86,209.78,1.52763506]
[1759098360234,0.71,209.86,209.79,4.76667143]
[1759098360440,39.0,209.87,209.78,1.52763506]
[1759098360650,0.71,209.85,209.76,1.52763506]
[1759098360851,0.71,209.84,209.75,1.52763506]
[1759098361051,0.71,209.83,209.75,4.76756695]
[1759098361253,0.71,209.83,209.75,6.29520201]
[1759098361459,0.71,209.83,209.77,1.52763506]
[1759098362046,0.71,209.86,209.77,1.52763506]
[1759098362247,0.71,209.86,209.78,4.76689865]
[1759098362544,26.0,209.83,209.73,1.52763506]
[1759098362757,0.71,209.82,209.73,1.52763506]
[1759098363066,0.71,209.81,209.73,1.52763506]
[1759098363269,0.71,209.8,209.73,1.52763506]
[1759098363768,26.0,209.83,209.72,1.52763506]
[1759098364061,0.71,209.81,209.74,1.52763506]
[1759098364360,0.71,209.81,209.76,1.52763506]
[1759098364671,26.0,209.83,209.71,16.68971435]
[1759098364672,0.71,209.8,209.71,16.68971435]
[1759098364846,0.71,209.8,209.76,1.52763506]
[1759098365162,0.71,209.8,209.71,16.68971435]
[1759098365370,0.71,209.79,209.75,1.52763506]
[1759098365664,26.0,209.83,209.75,1.52763506]
[1759098365665,0.71,209.81,209.75,1.52763506]
[1759098367245,0.71,209.81,209.75,6.29519189]
[1759098369261,26.0,209.82,209.75,6.29519189]
[1759098369463,0.71,209.84,209.77,1.52763506]
[1759098370049,132.8,209.86,209.77,1.52763506]
[1759098370050,0.71,209.83,209.77,1.52763506]
[1759098370649,0.71,209.82,209.76,1.52763506]
[1759098371070,26.0,209.83,209.76,1.52763506]
[1759098371375,26.0,209.83,209.77,4.76712589]
[1759098371768,26.67,209.84,209.77,4.76712589]
[1759098372172,26.67,209.84,209.77,6.29476095]
[1759098372675,0.67,209.84,209.79,1.52763506]
[1759098372874,65.0,209.87,209.79,1.52763506]
[1759098373076,0.67,209.86,209.79,1.52763506]
[1759098373261,0.67,209.85,209.79,1.52763506]
[1759098373463,0.67,209.84,209.79,1.52763506]
[1759098373667,0.67,209.83,209.79,1.52763506]
[1759098373969,65.0,209.87,209.79,1.52763506]
[1759098374177,0.67,209.83,209.79,1.52763506]
[1759098374376,0.67,209.82,209.79,1.52763506]
[1759098374752,0.67,209.82,209.79,6.29427584]
[1759098375568,0.67,209.82,209.76,38.92]
[1759098375569,0.67,209.82,209.77,1.52763506]
[1759098377379,65.0,209.87,209.77,1.52763506]
[1759098377380,0.67,209.81,209.77,1.52763506]
[1759098377761,0.67,209.81,209.77,6.29468346]
[1759098378280,0.67,209.8,209.76,4.76734515]
[1759098378482,0.67,209.79,209.75,6.29518631]
[1759098378780,0.67,209.78,209.75,6.29518631]
[1759098379376,0.67,209.77,209.69,4.76894463]
[1759098379584,0.67,209.77,209.7,1.52763506]
[1759098379884,0.67,209.76,209.7,1.52763506]
[1759098380079,0.67,209.75,209.68,1.52763506]
[1759098380260,0.67,209.74,209.67,1.52763506]
[1759098380460,0.67,209.73,209.67,1.52763506]
[1759098380773,0.71,209.72,209.67,1.52763506]
[1759098381177,0.71,209.71,209.67,1.52763506]
[1759098381480,0.71,209.74,209.67,1.52763506]
[1759098382184,0.71,209.73,209.68,4.76917207]
[1759098382479,26.0,209.77,209.68,4.76917207]
[1759098382480,0.71,209.72,209.68,4.76917207]
[1759098382986,0.71,209.72,209.67,6.2970047]
[1759098383363,39.59559401,209.7,209.6,2.0]
[1759098383566,0.71,209.69,209.6,6.77097013]
[1759098383779,0.71,209.68,209.6,6.77097013]
[1759098384063,39.59559401,209.7,209.6,6.77097013]
[1759098384064,26.71,209.7,209.62,1.52763506]
[1759098384290,0.71,209.73,209.66,1.52763506]
[1759098384480,13.59559401,209.78,209.68,1.52763506]
[1759098384680,0.71,209.75,209.7,1.52763506]
[1759098385073,0.71,209.74,209.7,1.52763506]
[1759098385287,0.71,209.77,209.72,1.52763506]
[1759098385587,0.71,209.8,209.74,1.52763506]
[1759098386163,0.71,209.8,209.74,4.76766849]
[1759098386388,0.71,209.8,209.76,1.52763506]
[1759098386864,26.71,209.82,209.76,1.52763506]
[1759098387489,0.71,209.81,209.76,1.52763506]
[1759098387658,26.0,209.82,209.76,1.52763506]
[1759098387863,0.71,209.8,209.76,1.52763506]
[1759098388060,26.0,209.82,209.76,1.52763506]
[1759098388061,0.71,209.79,209.76,1.52763506]
[1759098388289,0.71,209.79,209.75,3.7096948]
[1759098388779,26.0,209.82,209.75,3.7096948]
[1759098388780,26.71,209.82,209.75,3.7096948]
[1759098388967,0.71,209.81,209.75,3.7096948]
[1759098389167,0.71,209.8,209.75,3.7096948]
[1759098389389,0.71,209.79,209.75,3.7096948]
[1759098389890,26.0,209.82,209.75,3.7096948]
[1759098390070,0.71,209.78,209.75,3.7096948]
[1759098392672,0.71,209.81,209.77,3.7096948]
[1759098392876,26.0,209.82,209.77,3.7096948]
[1759098392877,0.71,209.8,209.77,3.7096948]
[1759098393773,26.0,209.82,209.72,4.76826244]
[1759098393974,0.71,209.79,209.71,3.7096948]
[1759098394277,0.71,209.78,209.68,3.7096948]
[1759098394486,26.0,209.73,209.64,3.7096948]
[1759098394680,26.0,209.7,209.6,5.7096948]
[1759098394879,0.71,209.69,209.6,2.0]
[1759098395093,0.71,209.68,209.6,2.0]
[1759098395299,26.0,209.66,209.6,2.0]
[1759098395496,0.71,209.65,209.6,2.0]
[1759098395702,26.0,209.61,209.6,1.28]
[1759098395884,39.59559401,209.6,209.46,0.1]
[1759098396085,43.30528881,209.6,209.5,0.65]
[1759098396288,39.59559401,209.55,209.46,0.75]
[1759098396498,39.59559401,209.55,209.46,0.1]
[1759098396694,40.30559401,209.55,209.46,0.1]
[1759098396900,18.01528881,209.55,209.46,0.1]
[1759098397305,29.7096948,209.51,209.46,0.1]
[1759098397482,26.0,209.5,209.46,0.1]
[1759098397683,42.5496948,209.53,209.46,0.1]
[1759098397684,44.01528881,209.49,209.46,0.1]
[1759098397898,26.0,209.49,209.46,0.1]
[1759098398089,0.71,209.48,209.46,0.1]
[1759098398604,0.71,209.47,209.46,0.1]
[1759098398795,14.30559401,209.47,209.46,0.1]
[1759098398994,19.73864255,209.47,209.46,0.1]
[1759098399194,13.59559401,209.47,209.46,0.1]
[1759098399396,14.30559401,209.47,209.46,0.1]
[1759098400200,19.73864255,209.47,209.46,0.1]
[1759098400612,14.30559401,209.47,209.46,0.1]
[1759098401108,13.59559401,209.46,209.45,0.2]
[1759098401293,13.59559401,209.46,209.45,0.13]
[1759098401610,13.59559401,209.46,209.45,0.03]
[1759098401611,79.04559401,209.46,209.45,0.03]
[1759098402087,40.20559401,209.46,209.45,0.03]
[1759098402286,104.49864255,209.46,209.45,0.03]
[1759098402488,40.20559401,209.46,209.45,0.03]
[1759098402687,79.06559401,209.46,209.45,0.03]
[1759098402922,104.49864255,209.46,209.45,0.03]
[1759098403096,47.55549891,209.46,209.45,0.03]
[1759098403418,99.06559401,209.46,209.45,0.03]
[1759098404113,40.20559401,209.46,209.45,0.03]
[1759098404417,57.88864255,209.46,209.45,0.03]
[1759098404798,44.29304854,209.46,209.45,0.03]
[1759098405189,58.39864255,209.46,209.45,0.03]
[1759098405492,19.02864255,209.46,209.45,0.03]
[1759098407757,5.43304854,209.46,209.45,0.03]
[1759098408039,58.12864255,209.46,209.45,0.03]
[1759098408218,5.43304854,209.46,209.45,0.03]
[1759098408735,19.02864255,209.46,209.45,0.03]
[1759098408907,5.43304854,209.46,209.45,0.03]
[1759098410618,5.43304854,209.49,209.45,0.68]
[1759098410824,26.0,209.48,209.46,0.65]
[1759098411117,26.0,209.48,209.47,0.65]
[1759098411642,5.43304854,209.49,209.47,0.65]
[1759098412020,31.43304854,209.49,209.48,0.65]
[1759098413512,31.43304854,209.49,209.45,4.8041962]
[1759098413513,13.59559401,209.48,209.45,0.03]
[1759098413717,31.43304854,209.46,209.45,0.03]
[1759098415117,26.0,209.46,209.45,0.68]
[1759098416143,31.43304854,209.46,209.45,0.03]
[1759098416819,26.0,209.46,209.45,0.68]
[1759098417129,32.90339363,209.52,209.45,5.45440916]
[1759098417317,32.90339363,209.52,209.46,0.65]
[1759098417512,58.90339363,209.52,209.46,0.65]
[1759098418636,32.90339363,209.52,209.46,0.65]
[1759098419215,32.90339363,209.52,209.47,4.77395331]
[1759098419413,32.90339363,209.52,209.48,0.65]
[1759098419614,32.90339363,209.52,209.49,0.65]
[1759098419814,58.90339363,209.52,209.45,0.68]
[1759098420110,58.90339363,209.52,209.45,5.45440075]
[1759098420413,58.90339363,209.52,209.46,0.65]
[1759098422021,58.90339363,209.52,209.46,5.42396334]
[1759098422537,26.0,209.49,209.45,0.03]
[1759098423236,26.0,209.49,209.45,5.45440676]
[1759098423729,26.0,209.49,209.45,0.68]
[1759098423918,26.0,209.47,209.45,0.03]
[1759098427426,31.43304854,209.47,209.45,0.03]
[1759098427739,31.94304854,209.47,209.45,0.03]
[1759098429023,31.43304854,209.47,209.45,0.03]
[1759098429219,26.0,209.47,209.45,0.03]
[1759098429652,38.9,209.5,209.46,0.65]
[1759098430143,31.43304854,209.51,209.45,0.03]
[1759098430455,31.43304854,209.51,209.46,0.65]
[1759098430949,31.43304854,209.51,209.47,0.65]
[1759098431143,31.43304854,209.51,209.45,0.68]
[1759098431837,26.0,209.51,209.45,0.68]
[1759098432159,133.31,209.58,209.45,0.68]
[1759098432326,133.31,209.58,209.47,5.43304854]
[1759098432327,38.9,209.57,209.47,5.43304854]
[1759098432525,26.0,209.54,209.48,0.69]
[1759098432830,13.59559401,209.6,209.48,0.69]
[1759098432831,5.94304854,209.62,209.48,0.69]
[1759098433037,5.94304854,209.62,209.48,6.12304854]
[1759098433038,39.41,209.61,209.48,6.12304854]
[1759098433247,19.02864255,209.6,209.49,0.69]
[1759098433428,26.0,209.57,209.49,0.69]
[1759098433842,13.59559401,209.6,209.49,0.69]
[1759098434047,26.0,209.57,209.49,0.69]
[1759098434231,26.0,209.57,209.5,16.7064439]
[1759098434440,26.0,209.57,209.51,0.69]
[1759098436133,26.0,209.57,209.49,4.77349475]
[1759098436335,26.0,209.57,209.49,0.69]
[1759098436537,26.51,209.56,209.48,4.77372541]
[1759098436755,26.51,209.56,209.48,16.70803894]
[1759098436956,26.0,209.54,209.48,16.70803894]
[1759098437960,26.0,209.54,209.48,17.39803894]
[1759098438140,26.0,209.54,209.49,0.69]
[1759098438343,26.0,209.54,209.5,5.46326968]
[1759098438962,26.0,209.54,209.5,0.69]
[1759098439558,0.51,209.62,209.5,0.69]
[1759098439858,13.59559401,209.6,209.5,0.69]
[1759098440156,0.51,209.59,209.5,0.69]
[1759098440475,0.51,209.59,209.51,16.70564649]
[1759098441538,0.51,209.59,209.51,4.77304185]
[1759098442841,0.51,209.59,209.51,5.49304185]
[1759098445296,13.59559401,209.6,209.5,16.70628339]
[1759098445591,13.59559401,209.6,209.52,0.72]
[1759098446368,26.0,209.61,209.52,0.72]
[1759098447362,26.0,209.61,209.53,16.70405192]
[1759098447565,26.0,209.61,209.54,0.72]
[1759098448282,14.10559401,209.6,209.53,4.77258626]
[1759098448465,0.51,209.59,209.53,4.77258626]
[1759098449167,13.59559401,209.6,209.53,4.77258626]